fUST/lending_fUST_20251126
["ID","MTS","AMOUNT","RATE_DAILY","PERIOD"]
[394900981,1764099063139,-500.0,0.0001178,2]
[394900982,1764099063148,-641.92,0.0001178,2]
[394900983,1764099063158,-1134.87,0.0001178,2]
[394900984,1764099063167,-500.0,0.0001178,2]
[394900985,1764099063176,-500.0,0.0001178,2]
[394900986,1764099063188,-725.87,0.0001178,2]
[394900987,1764099063198,-500.0,0.0001178,2]
[394900988,1764099063207,-500.0,0.0001178,2]
[394900989,1764099063218,-519.97,0.0001178,2]
[394900990,1764099063228,-500.0,0.0001178,2]
[394900991,1764099063238,-1448.08,0.0001178,2]
[394900992,1764099063248,-500.0,0.0001178,2]
[394900993,1764099063258,-500.0,0.0001178,2]
[394900994,1764099063268,-500.0,0.0001178,2]
[394900995,1764099063278,-500.0,0.0001178,2]
[394900996,1764099063288,-500.0,0.0001178,2]
[394900997,1764099063298,-1001.03,0.0001178,2]
[394900998,1764099063307,-1307.59,0.0001178,2]
[394900999,1764099063317,-500.0,0.0001178,2]
[394901000,1764099063326,-2337.7,0.0001178,2]
[394901001,1764099063336,-500.0,0.0001178,2]
[394901002,1764099063345,-518.30371825,0.0001178,2]
[394901003,1764099063355,-500.0,0.0001178,2]
[394901004,1764099063364,-500.0,0.0001178,2]
[394901005,1764099063373,-500.0,0.0001178,2]
[394901006,1764099063395,-500.0,0.0001178,2]
[394901007,1764099063405,-500.0,0.0001178,2]
[394901008,1764099063415,-1601.49,0.0001178,2]
[394901009,1764099063425,-500.0,0.0001178,2]
[394901010,1764099063435,-500.0,0.0001178,2]
[394901011,1764099063445,-500.0,0.0001178,2]
[394901012,1764099063455,-500.0,0.0001178,2]
[394901013,1764099063466,-613.35,0.0001178,2]
[394901014,1764099063476,-500.0,0.0001178,2]
[394901015,1764099063486,-500.0,0.0001178,2]
[394901016,1764099063496,-500.0,0.0001178,2]
[394901017,1764099063505,-500.0,0.0001178,2]
[394901018,1764099063514,-550.41066808,0.0001178,2]
[394901019,1764099063524,-500.0,0.0001178,2]
[394901020,1764099063534,-500.0,0.0001178,2]
[394901021,1764099063543,-500.0,0.0001178,2]
[394901022,1764099063553,-500.0,0.0001178,2]
[394901023,1764099063562,-500.0,0.0001178,2]
[394901024,1764099063572,-500.0,0.0001178,2]
[394901025,1764099063581,-500.0,0.0001178,2]
[394901026,1764099063592,-500.0,0.0001178,2]
[394901027,1764099063602,-1698.99,0.0001178,2]
[394901028,1764099063611,-500.0,0.0001178,2]
[394901029,1764099063621,-500.0,0.0001178,2]
[394901030,1764099063630,-500.0,0.0001178,2]
[394901031,1764099063640,-500.0,0.0001178,2]
[394901032,1764099063649,-754.51,0.0001178,2]
[394901033,1764099063659,-500.0,0.0001178,2]
[394901034,1764099063669,-1760.11,0.0001178,2]
[394901035,1764099063678,-500.0,0.0001178,2]
[394901036,1764099063688,-500.0,0.0001178,2]
[394901037,1764099063697,-527.04,0.0001178,2]
[394901038,1764099063707,-500.0,0.0001178,2]
[394901039,1764099063717,-500.0,0.0001178,2]
[394901040,1764099063726,-3246.46,0.0001178,2]
[394901041,1764099063736,-500.0,0.0001178,2]
[394901042,1764099063745,-500.0,0.0001178,2]
[394901043,1764099063755,-500.0,0.0001178,2]
[394901044,1764099063764,-500.0,0.0001178,2]
[394901045,1764099063773,-1000.0,0.0001178,2]
[394901046,1764099063783,-1140.97,0.0001178,2]
[394901047,1764099063792,-500.0,0.0001178,2]
[394901048,1764099063802,-1675.45,0.0001178,2]
[394901049,1764099063812,-500.0,0.0001178,2]
[394901050,1764099063821,-500.0,0.0001178,2]
[394901051,1764099063831,-270.52738678,0.0001178,2]
[394901052,1764099063841,-618.33,0.0001178,2]
[394901053,1764099063850,-1457.17,0.0001178,2]
[394901054,1764099063860,-500.0,0.0001178,2]
[394901055,1764099063870,-712.52,0.0001178,2]
[394901056,1764099063879,-530.53,0.0001178,2]
[394901057,1764099063889,-1339.37,0.0001178,2]
[394901058,1764099063899,-633.08,0.0001178,2]
[394901059,1764099063908,-500.0,0.0001178,2]
[394901060,1764099063918,-8328.75,0.0001178,2]
[394901061,1764099063928,-500.0,0.0001178,2]
[394901062,1764099063938,-500.0,0.0001178,2]
[394901063,1764099063947,-730.49,0.0001178,2]
[394901064,1764099063957,-293.41335413,0.0001178,2]
[394901065,1764099063968,-891.65,0.0001178,2]
[394901066,1764099063978,-584.21747478,0.0001178,2]
[394901067,1764099063989,-500.0,0.0001178,2]
[394901068,1764099063998,-500.0,0.0001178,2]
[394901069,1764099064007,-500.0,0.0001178,2]
[394901070,1764099064017,-500.0,0.0001178,2]
[394901071,1764099064026,-500.0,0.0001178,2]
[394901072,1764099064036,-500.0,0.0001178,2]
[394901073,1764099064045,-500.0,0.0001178,2]
[394901074,1764099064055,-1121.47,0.0001178,2]
[394901075,1764099064064,-500.0,0.0001178,2]
[394901076,1764099064073,-724.21,0.0001178,2]
[394901077,1764099064083,-500.0,0.0001178,2]
[394901078,1764099064091,-500.0,0.0001178,2]
[394901079,1764099064100,-500.0,0.0001178,2]
[394901080,1764099064111,-775.69,0.0001178,2]
[394901081,1764099064122,-500.0,0.0001178,2]
[394901082,1764099064132,-2205.5,0.0001178,2]
[394901083,1764099064141,-1088.06,0.0001178,2]
[394901084,1764099064150,-2339.45,0.0001178,2]
[394901085,1764099064160,-517.68,0.0001178,2]
[394901086,1764099064169,-500.0,0.0001178,2]
[394901087,1764099064179,-500.0,0.0001178,2]
[394901088,1764099064188,-1826.55,0.0001178,2]
[394901089,1764099064201,-1943.81,0.0001178,2]
[394901090,1764099064211,-751.94,0.0001178,2]
[394901091,1764099064221,-904.29,0.0001178,2]
[394901092,1764099064230,-774.88,0.0001178,2]
[394901093,1764099064240,-1872.97,0.0001178,2]
[394901094,1764099064250,-615.77,0.0001178,2]
[394901095,1764099064259,-500.0,0.0001178,2]
[394901096,1764099064268,-500.0,0.0001178,2]
[394901097,1764099064278,-500.0,0.0001178,2]
[394901098,1764099064287,-500.0,0.0001178,2]
[394901099,1764099064297,-634.92446716,0.0001178,2]
[394901100,1764099064306,-530.76,0.0001178,2]
[394901101,1764099064316,-5472.84,0.0001178,2]
[394901102,1764099064325,-500.0,0.0001178,2]
[394901103,1764099064335,-591.77,0.0001178,2]
[394901104,1764099064344,-500.0,0.0001178,2]
[394901105,1764099064354,-1265.76,0.0001178,2]
[394901106,1764099064363,-500.0,0.0001178,2]
[394901107,1764099064372,-500.0,0.0001178,2]
[394901108,1764099064382,-500.0,0.0001178,2]
[394901109,1764099064391,-537.16,0.0001178,2]
[394901110,1764099064402,-2955.61,0.0001178,2]
[394901111,1764099064412,-2185.47,0.0001178,2]
[394901112,1764099064422,-500.0,0.0001178,2]
[394901113,1764099064431,-1746.85,0.0001178,2]
[394901114,1764099064441,-500.0,0.0001178,2]
[394901115,1764099064450,-1639.14,0.0001178,2]
[394901116,1764099064460,-2881.47,0.0001178,2]
[394901117,1764099064473,-500.0,0.0001178,2]
[394901118,1764099064482,-1111.96,0.0001178,2]
[394901119,1764099064492,-2623.36,0.0001178,2]
[394901120,1764099064501,-500.0,0.0001178,2]
[394901121,1764099064511,-500.0,0.0001178,2]
[394901122,1764099064521,-4694.9,0.0001178,2]
[394901123,1764099064530,-500.0,0.0001178,2]
[394901124,1764099064539,-500.0,0.0001178,2]
[394901125,1764099064548,-500.0,0.0001178,2]
[394901126,1764099064558,-500.0,0.0001178,2]
[394901127,1764099064568,-1931.47,0.0001178,2]
[394901128,1764099064577,-2141.71,0.0001178,2]
[394901129,1764099064587,-1477.84,0.0001178,2]
[394901130,1764099064597,-533.77,0.0001178,2]
[394901131,1764099064606,-500.0,0.0001178,2]
[394901132,1764099064615,-500.0,0.0001178,2]
[394901133,1764099064625,-500.0,0.0001178,2]
[394901134,1764099064635,-200.02652337,0.0001178,2]
[394901135,1764099064644,-3516.57,0.0001178,2]
[394901136,1764099064654,-1823.41,0.0001178,2]
[394901137,1764099064663,-500.0,0.0001178,2]
[394901138,1764099064673,-6281.6,0.0001178,2]
[394901139,1764099064682,-923.25,0.0001178,2]
[394901140,1764099064692,-500.0,0.0001178,2]
[394901141,1764099064701,-525.3838121,0.0001178,2]
[394901142,1764099064711,-552.04,0.0001178,2]
[394901143,1764099064726,-500.0,0.0001178,2]
[394901144,1764099064735,-500.0,0.0001178,2]
[394901145,1764099064745,-347.31210755,0.0001178,2]
[394901146,1764099064755,-2792.1,0.0001178,2]
[394901147,1764099064764,-1332.61,0.0001178,2]
[394901148,1764099064774,-2197.66,0.0001178,2]
[394901149,1764099064784,-500.0,0.0001178,2]
[394901150,1764099064794,-3135.39,0.0001178,2]
[394901151,1764099064803,-659.4,0.0001178,2]
[394901152,1764099064813,-1012.98,0.0001178,2]
[394901153,1764099064822,-1202.03,0.0001178,2]
[394901154,1764099064832,-853.22,0.0001178,2]
[394901155,1764099064841,-1513.66,0.0001178,2]
[394901156,1764099064850,-500.0,0.0001178,2]
[394901157,1764099064859,-529.49,0.0001178,2]
[394901158,1764099065028,-501.36,0.0001178,2]
[394901159,1764099065038,-500.0,0.0001178,2]
[394901160,1764099065047,-500.0,0.0001178,2]
[394901161,1764099065056,-500.0,0.0001178,2]
[394901162,1764099065065,-3068.81,0.0001178,2]
[394901163,1764099065075,-500.0,0.0001178,2]
[394901164,1764099065084,-1124.66,0.0001178,2]
[394901165,1764099065094,-500.0,0.0001178,2]
[394901166,1764099065103,-1462.56,0.0001178,2]
[394901167,1764099065117,-500.0,0.0001178,2]
[394901168,1764099065126,-500.0,0.0001178,2]
[394901169,1764099065135,-2904.67,0.0001178,2]
[394901170,1764099065146,-5465.24,0.0001178,2]
[394901171,1764099065156,-517.38,0.0001178,2]
[394901172,1764099065166,-558.7443712,0.0001178,2]
[394901173,1764099065175,-595.9,0.0001178,2]
[394901174,1764099065184,-512.71633605,0.0001178,2]
[394901175,1764099065195,-500.0,0.0001178,2]
[394901176,1764099065205,-507.05,0.0001178,2]
[394901177,1764099065214,-1034.01,0.0001178,2]
[394901178,1764099065225,-2831.69,0.0001178,2]
[394901179,1764099065234,-500.0,0.0001178,2]
[394901180,1764099065243,-500.0,0.0001178,2]
[394901181,1764099065252,-753.73,0.0001178,2]
[394901182,1764099065261,-500.0,0.0001178,2]
[394901183,1764099065270,-500.0,0.0001178,2]
[394901184,1764099065279,-500.0,0.0001178,2]
[394901185,1764099065289,-500.0,0.0001178,2]
[394901186,1764099065299,-500.0,0.0001178,2]
[394901187,1764099065308,-528.7,0.0001178,2]
[394901188,1764099065317,-640.24,0.0001178,2]
[394901189,1764099065326,-500.0,0.0001178,2]
[394901190,1764099065336,-13460.7,0.0001178,2]
[394901191,1764099065345,-1389.23,0.0001178,2]
[394901192,1764099065354,-500.0,0.0001178,2]
[394901193,1764099065364,-368.51072635,0.0001178,2]
[394901194,1764099065373,-500.0,0.0001178,2]
[394901195,1764099065383,-500.0,0.0001178,2]
[394901196,1764099065392,-500.0,0.0001178,2]
[394901197,1764099065401,-3213.91,0.0001178,2]
[394901198,1764099065411,-592.53,0.0001178,2]
[394901199,1764099065421,-1263.83,0.0001178,2]
[394901200,1764099065430,-3463.96,0.0001178,2]
[394901201,1764099065439,-500.0,0.0001178,2]
[394901202,1764099065448,-500.0,0.0001178,2]
[394901203,1764099065459,-500.0,0.0001178,2]
[394901204,1764099065470,-2311.99,0.0001178,2]
[394901205,1764099065479,-500.0,0.0001178,2]
[394901206,1764099065489,-724.7,0.0001178,2]
[394901207,1764099065499,-500.0,0.0001178,2]
[394901208,1764099065508,-500.0,0.0001178,2]
[394901209,1764099065519,-499.98,0.0001178,2]
[394901210,1764099065535,-1300.95,0.0001178,2]
[394901211,1764099065545,-500.0,0.0001178,2]
[394901212,1764099065554,-631.94650186,0.00011797,3]
[394901213,1764099065563,-1000.0,0.00011821,2]
[394901214,1764099065573,-1000.0,0.00011821,2]
[394901215,1764099065582,-1000.0,0.00011821,2]
[394901216,1764099065591,-1000.0,0.00011821,2]
[394901217,1764099065602,-1000.0,0.00011821,2]
[394901218,1764099065611,-2634.12315922,0.00011911,2]
[394901219,1764099065620,-1850.82570349,0.00011933,2]
[394901220,1764099065630,-600.0,0.00012,3]
[394901221,1764099065639,-1128.31085668,0.00012049,3]
[394901222,1764099065648,-500.0,0.00012054,2]
[394901223,1764099065658,-500.0,0.00012054,2]
[394901224,1764099065667,-500.0,0.00012054,2]
[394901225,1764099065676,-500.0,0.00012054,2]
[394901226,1764099065686,-500.0,0.00012054,2]
[394901227,1764099065695,-500.0,0.00012054,2]
[394901228,1764099065704,-500.0,0.00012054,2]
[394901229,1764099065714,-500.0,0.00012054,2]
[394901230,1764099065725,-791.8,0.00012054,2]
[394901231,1764099065734,-500.0,0.00012054,2]
[394901232,1764099065743,-500.0,0.00012054,2]
[394901233,1764099065752,-500.0,0.00012054,2]
[394901234,1764099065763,-500.0,0.00012054,2]
[394901235,1764099065772,-956.18,0.00012054,2]
[394901236,1764099065781,-500.0,0.00012054,2]
[394901237,1764099065790,-500.0,0.00012054,2]
[394901238,1764099065799,-500.0,0.00012054,2]
[394901239,1764099065809,-500.0,0.00012054,2]
[394901240,1764099065818,-304.8617104,0.00012054,2]
[394901241,1764099065827,-500.0,0.00012054,2]
[394901242,1764099065836,-416.37930073,0.00012054,2]
[394901243,1764099065846,-543.98570366,0.00012054,2]
[394901244,1764099065855,-500.0,0.00012054,2]
[394901245,1764099065865,-1109.54,0.00012054,2]
[394901246,1764099065874,-500.0,0.00012054,2]
[394901247,1764099065884,-625.7,0.00012054,2]
[394901248,1764099065893,-500.0,0.00012054,2]
[394901249,1764099065902,-589.5261905,0.00012054,2]
[394901250,1764099065913,-519.8,0.00012054,2]
[394901251,1764099065923,-755.22,0.00012054,2]
[394901252,1764099065932,-500.0,0.00012054,2]
[394901253,1764099065942,-500.0,0.00012054,2]
[394901254,1764099065951,-475.19205202,0.00012054,2]
[394901255,1764099065961,-551.63,0.00012054,2]
[394901256,1764099065970,-500.0,0.00012054,2]
[394901257,1764099065979,-879.57,0.00012054,2]
[394901258,1764099065988,-500.0,0.00012054,2]
[394901259,1764099065997,-500.0,0.00012054,2]
[394901260,1764099066006,-807.9,0.00012054,2]
[394901261,1764099066015,-500.0,0.00012054,2]
[394901262,1764099066025,-1197.75,0.00012054,2]
[394901263,1764099066034,-500.0,0.00012054,2]
[394901264,1764099066043,-500.0,0.00012054,2]
[394901265,1764099066052,-500.0,0.00012054,2]
[394901266,1764099066062,-1399.99,0.00012054,2]
[394901267,1764099066071,-500.0,0.00012054,2]
[394901268,1764099066079,-500.0,0.00012054,2]
[394901269,1764099066088,-500.0,0.00012054,2]
[394901270,1764099066098,-514.12,0.00012054,2]
[394901271,1764099066108,-516.17,0.00012054,2]
[394901272,1764099066121,-500.0,0.00012054,2]
[394901273,1764099066130,-500.0,0.00012054,2]
[394901274,1764099066139,-500.0,0.00012054,2]
[394901275,1764099066148,-569.59,0.00012054,2]
[394901276,1764099066158,-2710.36,0.00012054,2]
[394901277,1764099066167,-635.52,0.00012054,2]
[394901278,1764099066176,-500.0,0.00012054,2]
[394901279,1764099066185,-500.0,0.00012054,2]
[394901280,1764099066196,-1310.34,0.00012054,2]
[394901281,1764099066205,-500.0,0.00012054,2]
[394901282,1764099066214,-717.97,0.00012054,2]
[394901283,1764099066225,-302.09662457,0.00012054,2]
[394901284,1764099066234,-500.0,0.00012054,2]
[394901285,1764099066243,-627.87,0.00012054,2]
[394901286,1764099066252,-500.0,0.00012054,2]
[394901287,1764099066261,-500.0,0.00012054,2]
[394901288,1764099066271,-614.09059802,0.00012054,2]
[394901289,1764099066279,-500.0,0.00012054,2]
[394901290,1764099066289,-500.0,0.00012054,2]
[394901291,1764099066298,-641.92,0.00012054,2]
[394901292,1764099066307,-1134.87,0.00012054,2]
[394901293,1764099066316,-500.0,0.00012054,2]
[394901294,1764099066325,-500.0,0.00012054,2]
[394901295,1764099066334,-725.87,0.00012054,2]
[394901296,1764099066343,-500.0,0.00012054,2]
[394901297,1764099066352,-500.0,0.00012054,2]
[394901298,1764099066361,-519.97,0.00012054,2]
[394901299,1764099066371,-500.0,0.00012054,2]
[394901300,1764099066381,-1448.08,0.00012054,2]
[394901301,1764099066390,-500.0,0.00012054,2]
[394901302,1764099066399,-313.77688879,0.00012054,2]
[394901303,1764099066408,-500.0,0.00012054,2]
[394901304,1764099066418,-500.0,0.00012054,2]
[394901305,1764099066427,-500.0,0.00012054,2]
[394901306,1764099066436,-1001.03,0.00012054,2]
[394901307,1764099066446,-1307.59,0.00012054,2]
[394901308,1764099066455,-500.0,0.00012054,2]
[394901309,1764099066465,-2337.7,0.00012054,2]
[394901310,1764099066475,-500.0,0.00012054,2]
[394901311,1764099066484,-499.80712058,0.00012054,2]
[394901312,1764099066493,-500.0,0.00012054,2]
[394901313,1764099066503,-500.0,0.00012054,2]
[394901314,1764099066511,-500.0,0.00012054,2]
[394901315,1764099066521,-500.0,0.00012054,2]
[394901316,1764099066530,-500.0,0.00012054,2]
[394901317,1764099066540,-1601.49,0.00012054,2]
[394901318,1764099066549,-500.0,0.00012054,2]
[394901319,1764099066558,-500.0,0.00012054,2]
[394901320,1764099066567,-500.0,0.00012054,2]
[394901321,1764099066576,-613.35,0.00012054,2]
[394901322,1764099066585,-500.0,0.00012054,2]
[394901323,1764099066594,-500.0,0.00012054,2]
[394901324,1764099066603,-500.0,0.00012054,2]
[394901325,1764099066612,-500.0,0.00012054,2]
[394901326,1764099066621,-500.0,0.00012054,2]
[394901327,1764099066630,-338.53822753,0.00012054,2]
[394901328,1764099066639,-500.0,0.00012054,2]
[394901329,1764099066648,-500.0,0.00012054,2]
[394901330,1764099066658,-500.0,0.00012054,2]
[394901331,1764099066667,-500.0,0.00012054,2]
[394901332,1764099066677,-500.0,0.00012054,2]
[394901333,1764099066686,-500.0,0.00012054,2]
[394901334,1764099066695,-1698.99,0.00012054,2]
[394901335,1764099066705,-500.0,0.00012054,2]
[394901336,1764099066714,-500.0,0.00012054,2]
[394901337,1764099066726,-500.0,0.00012054,2]
[394901338,1764099066735,-196.52606147,0.00012054,2]
[394901339,1764099066744,-754.51,0.00012054,2]
[394901340,1764099066753,-500.0,0.00012054,2]
[394901341,1764099066762,-1760.11,0.00012054,2]
[394901342,1764099066771,-500.0,0.00012054,2]
[394901343,1764099066781,-500.0,0.00012054,2]
[394901344,1764099066790,-527.04,0.00012054,2]
[394901345,1764099066799,-500.0,0.00012054,2]
[394901346,1764099066808,-500.0,0.00012054,2]
[394901347,1764099066819,-3246.46,0.00012054,2]
[394901348,1764099066828,-500.0,0.00012054,2]
[394901349,1764099066837,-500.0,0.00012054,2]
[394901350,1764099066846,-500.0,0.00012054,2]
[394901351,1764099066855,-500.0,0.00012054,2]
[394901352,1764099066865,-1000.0,0.00012054,2]
[394901353,1764099066874,-1140.97,0.00012054,2]
[394901354,1764099066883,-500.0,0.00012054,2]
[394901355,1764099066892,-1675.45,0.00012054,2]
[394901356,1764099066901,-500.0,0.00012054,2]
[394901357,1764099066911,-500.0,0.00012054,2]
[394901358,1764099066920,-1457.17,0.00012054,2]
[394901359,1764099066930,-618.33,0.00012054,2]
[394901360,1764099066939,-500.0,0.00012054,2]
[394901361,1764099066948,-712.52,0.00012054,2]
[394901362,1764099066957,-530.53,0.00012054,2]
[394901363,1764099066967,-1339.37,0.00012054,2]
[394901364,1764099066976,-633.08,0.00012054,2]
[394901365,1764099066985,-500.0,0.00012054,2]
[394901366,1764099066995,-8328.75,0.00012054,2]
[394901367,1764099067004,-500.0,0.00012054,2]
[394901368,1764099067013,-500.0,0.00012054,2]
[394901369,1764099067022,-730.49,0.00012054,2]
[394901370,1764099067031,-891.65,0.00012054,2]
[394901371,1764099067040,-500.0,0.00012054,2]
[394901372,1764099067049,-500.0,0.00012054,2]
[394901373,1764099067058,-500.0,0.00012054,2]
[394901374,1764099067067,-500.0,0.00012054,2]
[394901375,1764099067076,-500.0,0.00012054,2]
[394901376,1764099067085,-500.0,0.00012054,2]
[394901377,1764099067094,-500.0,0.00012054,2]
[394901378,1764099067104,-1121.47,0.00012054,2]
[394901379,1764099067114,-500.0,0.00012054,2]
[394901380,1764099067128,-724.21,0.00012054,2]
[394901381,1764099067137,-500.0,0.00012054,2]
[394901382,1764099067147,-500.0,0.00012054,2]
[394901383,1764099067156,-500.0,0.00012054,2]
[394901384,1764099067166,-775.69,0.00012054,2]
[394901385,1764099067176,-500.0,0.00012054,2]
[394901386,1764099067185,-2205.5,0.00012054,2]
[394901387,1764099067195,-1088.06,0.00012054,2]
[394901388,1764099067204,-2339.45,0.00012054,2]
[394901389,1764099067214,-517.68,0.00012054,2]
[394901390,1764099067225,-220.91360331,0.00012054,2]
[394901391,1764099067234,-500.0,0.00012054,2]
[394901392,1764099067244,-1826.55,0.00012054,2]
[394901393,1764099067253,-1943.81,0.00012054,2]
[394901394,1764099067263,-751.94,0.00012054,2]
[394901395,1764099067273,-904.29,0.00012054,2]
[394901396,1764099067283,-1872.97,0.00012054,2]
[394901397,1764099067292,-774.88,0.00012054,2]
[394901398,1764099067302,-615.77,0.00012054,2]
[394901399,1764099067312,-500.0,0.00012054,2]
[394901400,1764099067320,-500.0,0.00012054,2]
[394901401,1764099067330,-500.0,0.00012054,2]
[394901402,1764099067340,-500.0,0.00012054,2]
[394901403,1764099067349,-530.76,0.00012054,2]
[394901404,1764099067358,-5472.84,0.00012054,2]
[394901405,1764099067368,-500.0,0.00012054,2]
[394901406,1764099067377,-591.77,0.00012054,2]
[394901407,1764099067386,-500.0,0.00012054,2]
[394901408,1764099067395,-1265.76,0.00012054,2]
[394901409,1764099067404,-500.0,0.00012054,2]
[394901410,1764099067414,-500.0,0.00012054,2]
[394901411,1764099067423,-500.0,0.00012054,2]
[394901412,1764099067432,-537.16,0.00012054,2]
[394901413,1764099067442,-2955.61,0.00012054,2]
[394901414,1764099067451,-2185.47,0.00012054,2]
[394901415,1764099067460,-500.0,0.00012054,2]
[394901416,1764099067469,-1746.85,0.00012054,2]
[394901417,1764099067478,-500.0,0.00012054,2]
[394901418,1764099067487,-1639.14,0.00012054,2]
[394901419,1764099067497,-2881.47,0.00012054,2]
[394901420,1764099067506,-424.08046155,0.00012054,2]
[394901421,1764099067515,-1111.96,0.00012054,2]
[394901422,1764099067524,-2623.36,0.00012054,2]
[394901423,1764099067533,-500.0,0.00012054,2]
[394901424,1764099067542,-225.67352591,0.00012054,2]
[394901425,1764099067551,-4694.9,0.00012054,2]
[394901426,1764099067687,-500.0,0.00012054,2]
[394901427,1764099067699,-274.44535578,0.00012054,2]
[394901428,1764099067708,-500.0,0.00012054,2]
[394901429,1764099067719,-500.0,0.00012054,2]
[394901430,1764099067728,-1931.47,0.00012054,2]
[394901431,1764099067737,-2141.71,0.00012054,2]
[394901432,1764099067747,-1477.84,0.00012054,2]
[394901433,1764099067756,-533.77,0.00012054,2]
[394901434,1764099067765,-500.0,0.00012054,2]
[394901435,1764099067775,-500.0,0.00012054,2]
[394901436,1764099067784,-500.0,0.00012054,2]
[394901437,1764099067793,-3516.57,0.00012054,2]
[394901438,1764099067802,-1823.41,0.00012054,2]
[394901439,1764099067812,-500.0,0.00012054,2]
[394901440,1764099067821,-6281.6,0.00012054,2]
[394901441,1764099067831,-923.25,0.00012054,2]
[394901442,1764099067840,-500.0,0.00012054,2]
[394901443,1764099067849,-552.04,0.00012054,2]
[394901444,1764099067859,-500.0,0.00012054,2]
[394901445,1764099067868,-500.0,0.00012054,2]
[394901446,1764099067877,-2792.1,0.00012054,2]
[394901447,1764099067887,-1332.61,0.00012054,2]
[394901448,1764099067904,-2197.66,0.00012054,2]
[394901449,1764099067913,-500.0,0.00012054,2]
[394901450,1764099067923,-3135.39,0.00012054,2]
[394901451,1764099067932,-659.4,0.00012054,2]
[394901452,1764099067942,-1012.98,0.00012054,2]
[394901453,1764099067951,-1202.03,0.00012054,2]
[394901454,1764099067960,-853.22,0.00012054,2]
[394901455,1764099067969,-1513.66,0.00012054,2]
[394901456,1764099067979,-500.0,0.00012054,2]
[394901457,1764099067988,-529.49,0.00012054,2]
[394901458,1764099067998,-501.36,0.00012054,2]
[394901459,1764099068009,-500.0,0.00012054,2]
[394901460,1764099068018,-500.0,0.00012054,2]
[394901461,1764099068028,-500.0,0.00012054,2]
[394901462,1764099068038,-3068.81,0.00012054,2]
[394901463,1764099068048,-500.0,0.00012054,2]
[394901464,1764099068058,-1124.66,0.00012054,2]
[394901465,1764099068068,-500.0,0.00012054,2]
[394901466,1764099068078,-1462.56,0.00012054,2]
[394901467,1764099068087,-500.0,0.00012054,2]
[394901468,1764099068097,-500.0,0.00012054,2]
[394901469,1764099068106,-2904.67,0.00012054,2]
[394901470,1764099068117,-5465.24,0.00012054,2]
[394901471,1764099068129,-517.38,0.00012054,2]
[394901472,1764099068139,-595.9,0.00012054,2]
[394901473,1764099068148,-355.42005329,0.00012054,2]
[394901474,1764099068158,-507.05,0.00012054,2]
[394901475,1764099068167,-1034.01,0.00012054,2]
[394901476,1764099068177,-2831.69,0.00012054,2]
[394901477,1764099068187,-356.98917374,0.00012054,2]
[394901478,1764099068197,-753.73,0.00012054,2]
[394901479,1764099068207,-252.38753583,0.00012054,2]
[394901480,1764099068217,-500.0,0.00012054,2]